[Event "Early-Titled-Tuesday-Blitz-September-12-2023"]
[Site "Chess.com"]
[Date "2023.09.12"]
[Round "4"]
[White "vladislavkovalev"]
[Black "Dixit_Nikhil"]
[Result "1-0"]
[WhiteElo "2893"]
[BlackElo "2574"]
[TimeControl "180+1"]
[EndTime "8:35:16 PDT"]
[Termination "vladislavkovalev won by resignation"]

1. e4 {[%clk 0:02:57.3]} 1... Nc6 {[%clk 0:02:54.4]} 2. d4 {[%clk 0:02:55.6]}
2... d6 {[%clk 0:02:52.6]} 3. Nf3 {[%clk 0:02:51.5]} 3... Nf6 {[%clk 0:02:51.7]}
4. Nc3 {[%clk 0:02:50.8]} 4... g6 {[%clk 0:02:46.2]} 5. h3 {[%clk 0:02:46.9]}
5... Bg7 {[%clk 0:02:30.3]} 6. Be3 {[%clk 0:02:46.3]} 6... a6 {[%clk 0:02:27.1]}
7. a4 {[%clk 0:02:42.1]} 7... O-O {[%clk 0:02:09.7]} 8. Be2 {[%clk 0:02:41.3]}
8... b6 {[%clk 0:02:03.5]} 9. O-O {[%clk 0:02:40.7]} 9... e6 {[%clk 0:02:01.8]}
10. Re1 {[%clk 0:02:38.8]} 10... Ne7 {[%clk 0:01:54.5]} 11. Qd2 {[%clk
0:02:27.1]} 11... Bb7 {[%clk 0:01:53.4]} 12. Bd3 {[%clk 0:02:27.1]} 12... c5
{[%clk 0:01:52.1]} 13. Rad1 {[%clk 0:02:22.3]} 13... d5 {[%clk 0:01:48.3]} 14.
e5 {[%clk 0:02:06.7]} 14... Ne4 {[%clk 0:01:46.9]} 15. Bxe4 {[%clk 0:02:06.4]}
15... dxe4 {[%clk 0:01:47.5]} 16. Ng5 {[%clk 0:02:07.1]} 16... Nf5 {[%clk
0:01:43.1]} 17. dxc5 {[%clk 0:02:01.5]} 17... Nxe3 {[%clk 0:01:28.9]} 18. Qxe3
{[%clk 0:02:02.4]} 18... Qc7 {[%clk 0:01:22.7]} 19. cxb6 {[%clk 0:01:56.8]}
19... Qxe5 {[%clk 0:01:22.4]} 20. Ngxe4 {[%clk 0:01:57.5]} 20... Rad8 {[%clk
0:01:10]} 21. Nc5 {[%clk 0:01:55.9]} 21... Qxe3 {[%clk 0:01:08.7]} 22. fxe3
{[%clk 0:01:54]} 22... Bc6 {[%clk 0:01:08.9]} 23. a5 {[%clk 0:01:46.8]} 1-0

[Event "Early-Titled-Tuesday-Blitz-September-12-2023"]
[Site "Chess.com"]
[Date "2023.09.12"]
[Round "4"]
[White "ploxoi"]
[Black "ChainedDowntohell"]
[Result "1-0"]
[WhiteElo "2385"]
[BlackElo "2514"]
[TimeControl "180+1"]
[EndTime "8:35:22 PDT"]
[Termination "ploxoi won by resignation"]

1. d4 {[%clk 0:03:00.9]} 1... Nf6 {[%clk 0:02:57.9]} 2. c4 {[%clk 0:03:01.2]}
2... b6 {[%clk 0:02:56.9]} 3. Nc3 {[%clk 0:02:57.1]} 3... Bb7 {[%clk 0:02:56.1]}
4. f3 {[%clk 0:02:57.7]} 4... d5 {[%clk 0:02:55.3]} 5. cxd5 {[%clk 0:02:56.8]}
5... Nxd5 {[%clk 0:02:55.6]} 6. e4 {[%clk 0:02:57.5]} 6... Nxc3 {[%clk
0:02:55.7]} 7. bxc3 {[%clk 0:02:58.4]} 7... e5 {[%clk 0:02:55.7]} 8. Bc4 {[%clk
0:02:52.9]} 8... exd4 {[%clk 0:02:55.3]} 9. cxd4 {[%clk 0:02:53.8]} 9... Bb4+
{[%clk 0:02:49.6]} 10. Kf1 {[%clk 0:02:54]} 10... O-O {[%clk 0:02:48.4]} 11. Ne2
{[%clk 0:02:53.8]} 11... Kh8 {[%clk 0:02:45]} 12. Qb3 {[%clk 0:02:53.4]} 12...
Qe7 {[%clk 0:02:43.9]} 13. a3 {[%clk 0:02:49.2]} 13... Ba5 {[%clk 0:02:40.8]}
14. h4 {[%clk 0:02:49.7]} 14... f5 {[%clk 0:02:32.1]} 15. e5 {[%clk 0:02:48.1]}
15... c5 {[%clk 0:02:25.8]} 16. h5 {[%clk 0:02:25.4]} 16... Nc6 {[%clk
0:02:17.1]} 17. h6 {[%clk 0:02:24]} 17... g6 {[%clk 0:01:59.2]} 18. d5 {[%clk
0:02:23.2]} 18... Nd4 {[%clk 0:01:47]} 19. Nxd4 {[%clk 0:02:22.8]} 19... cxd4
{[%clk 0:01:47.9]} 20. Bb2 {[%clk 0:02:23]} 20... Qc5 {[%clk 0:01:17.3]} 21. Rd1
{[%clk 0:02:21.2]} 21... Bc3 {[%clk 0:01:16.6]} 22. Bxc3 {[%clk 0:02:18.4]}
22... dxc3 {[%clk 0:01:17.5]} 23. Qxc3 {[%clk 0:02:19.1]} 23... Qe7 {[%clk
0:00:37.7]} 24. d6 {[%clk 0:02:14.7]} 24... Qf6 {[%clk 0:00:33.9]} 25. exf6
{[%clk 0:02:14.5]} 1-0

[Event "Early-Titled-Tuesday-Blitz-September-12-2023"]
[Site "Chess.com"]
[Date "2023.09.12"]
[Round "4"]
[White "YEIKO2017"]
[Black "DefiantChair"]
[Result "0-1"]
[WhiteElo "2516"]
[BlackElo "2686"]
[TimeControl "180+1"]
[EndTime "8:35:36 PDT"]
[Termination "DefiantChair won by resignation"]

1. e4 {[%clk 0:03:00.9]} 1... c5 {[%clk 0:02:54.4]} 2. Nf3 {[%clk 0:03:00.2]}
2... d6 {[%clk 0:02:54.8]} 3. d4 {[%clk 0:03:00.1]} 3... cxd4 {[%clk 0:02:55.7]}
4. Nxd4 {[%clk 0:03:00.3]} 4... Nf6 {[%clk 0:02:56.3]} 5. Nc3 {[%clk 0:03:00.4]}
5... a6 {[%clk 0:02:56.8]} 6. Bg5 {[%clk 0:03:00.3]} 6... Nbd7 {[%clk
0:02:56.5]} 7. Qe2 {[%clk 0:02:59.4]} 7... h6 {[%clk 0:02:55.4]} 8. Bh4 {[%clk
0:02:58]} 8... g6 {[%clk 0:02:55.7]} 9. f4 {[%clk 0:02:53.6]} 9... e5 {[%clk
0:02:52.2]} 10. O-O-O {[%clk 0:02:45.2]} 10... exf4 {[%clk 0:02:49.5]} 11. Bxf6
{[%clk 0:02:41.7]} 11... Nxf6 {[%clk 0:02:46.8]} 12. e5 {[%clk 0:02:42.3]} 12...
dxe5 {[%clk 0:02:41.4]} 13. Qxe5+ {[%clk 0:02:40.8]} 13... Be7 {[%clk
0:02:41.5]} 14. Ndb5 {[%clk 0:02:29.5]} 14... Qxd1+ {[%clk 0:02:29.7]} 15. Kxd1
{[%clk 0:02:25.2]} 15... axb5 {[%clk 0:02:30.6]} 16. Nxb5 {[%clk 0:02:18.2]}
16... Bg4+ {[%clk 0:02:28.1]} 17. Be2 {[%clk 0:02:07.3]} 17... Bxe2+ {[%clk
0:02:27.3]} 18. Qxe2 {[%clk 0:02:07.2]} 18... Rxa2 {[%clk 0:02:15.7]} 19. Re1
{[%clk 0:02:01.3]} 19... Ra1+ {[%clk 0:02:14.9]} 20. Kd2 {[%clk 0:02:01.5]}
20... Rxe1 {[%clk 0:02:14.2]} 21. Kxe1 {[%clk 0:01:54.6]} 21... O-O {[%clk
0:02:10]} 22. Qf3 {[%clk 0:01:46.3]} 22... Re8 {[%clk 0:02:06.3]} 23. Kd1 {[%clk
0:01:40]} 23... Rd8+ {[%clk 0:01:56.1]} 24. Kc1 {[%clk 0:01:39.2]} 24... Nd5
{[%clk 0:01:56.3]} 25. c4 {[%clk 0:01:30.4]} 25... Ne3 {[%clk 0:01:50.5]} 26. b3
{[%clk 0:01:27.6]} 26... Rd1+ {[%clk 0:01:41.1]} 27. Kb2 {[%clk 0:01:27.7]}
27... Bf6+ {[%clk 0:01:37.5]} 28. Ka3 {[%clk 0:01:27.4]} 28... Nc2+ {[%clk
0:01:33.9]} 29. Ka4 {[%clk 0:01:18.5]} 29... Ra1+ {[%clk 0:01:33.7]} 30. Na3
{[%clk 0:01:18.5]} 30... Rxa3+ {[%clk 0:01:33.4]} 31. Kb5 {[%clk 0:01:18.9]}
31... Nd4+ {[%clk 0:01:33.4]} 0-1

[Event "Early-Titled-Tuesday-Blitz-September-12-2023"]
[Site "Chess.com"]
[Date "2023.09.12"]
[Round "4"]
[White "Itk04"]
[Black "h4parah5"]
[Result "1-0"]
[WhiteElo "2763"]
[BlackElo "2939"]
[TimeControl "180+1"]
[EndTime "8:35:37 PDT"]
[Termination "Itk04 won by resignation"]

1. d4 {[%clk 0:03:00.9]} 1... Nf6 {[%clk 0:02:57.8]} 2. c4 {[%clk 0:03:01.3]}
2... g6 {[%clk 0:02:57.8]} 3. g3 {[%clk 0:03:00.9]} 3... Bg7 {[%clk 0:02:58]} 4.
Bg2 {[%clk 0:03:01.5]} 4... d6 {[%clk 0:02:58.5]} 5. Nf3 {[%clk 0:02:59.7]} 5...
O-O {[%clk 0:02:56.3]} 6. O-O {[%clk 0:03:00.2]} 6... Ne4 {[%clk 0:02:55]} 7.
Re1 {[%clk 0:02:48.9]} 7... f5 {[%clk 0:02:46.9]} 8. Nc3 {[%clk 0:02:45.6]} 8...
Nc6 {[%clk 0:02:34.8]} 9. e3 {[%clk 0:02:19.4]} 9... Nxc3 {[%clk 0:02:31.1]} 10.
bxc3 {[%clk 0:02:20.3]} 10... e5 {[%clk 0:02:31.2]} 11. Ba3 {[%clk 0:02:16.8]}
11... Qe8 {[%clk 0:02:09.1]} 12. c5 {[%clk 0:02:03.8]} 12... e4 {[%clk
0:02:08.7]} 13. Nd2 {[%clk 0:02:04.3]} 13... d5 {[%clk 0:02:09]} 14. c4 {[%clk
0:02:04.9]} 14... Be6 {[%clk 0:02:08.7]} 15. Rb1 {[%clk 0:02:01.5]} 15... Rb8
{[%clk 0:02:06.8]} 16. Bf1 {[%clk 0:01:56.7]} 16... Kh8 {[%clk 0:02:03.5]} 17.
Qa4 {[%clk 0:01:51.8]} 17... b6 {[%clk 0:01:32.4]} 18. cxb6 {[%clk 0:01:46.8]}
18... axb6 {[%clk 0:01:33.3]} 19. Bxf8 {[%clk 0:01:46.5]} 19... Bxf8 {[%clk
0:01:34.2]} 20. cxd5 {[%clk 0:01:45.7]} 20... Bxd5 {[%clk 0:01:34.3]} 21. Bc4
{[%clk 0:01:39.3]} 21... Bxc4 {[%clk 0:01:34.3]} 22. Qxc4 {[%clk 0:01:36.3]}
22... Bd6 {[%clk 0:01:33.6]} 23. Qb5 {[%clk 0:01:32.6]} 23... Ra8 {[%clk
0:01:31.9]} 24. Rec1 {[%clk 0:01:26.8]} 24... Rxa2 {[%clk 0:01:29.7]} 25. Nf1
{[%clk 0:01:11.7]} 1-0

[Event "Early-Titled-Tuesday-Blitz-September-12-2023"]
[Site "Chess.com"]
[Date "2023.09.12"]
[Round "4"]
[White "Cambek64"]
[Black "InitiatingASC"]
[Result "1-0"]
[WhiteElo "2526"]
[BlackElo "2344"]
[TimeControl "180+1"]
[EndTime "8:35:38 PDT"]
[Termination "Cambek64 won by resignation"]

1. b3 {[%clk 0:02:58.9]} 1... Nf6 {[%clk 0:02:56.2]} 2. Bb2 {[%clk 0:02:59.4]}
2... b6 {[%clk 0:02:56.4]} 3. Bxf6 {[%clk 0:02:56.5]} 3... gxf6 {[%clk
0:02:55.2]} 4. c4 {[%clk 0:02:56]} 4... Bb7 {[%clk 0:02:54.9]} 5. e3 {[%clk
0:02:56.4]} 5... e6 {[%clk 0:02:55.4]} 6. Nf3 {[%clk 0:02:56.7]} 6... d5 {[%clk
0:02:55.4]} 7. Nc3 {[%clk 0:02:55.6]} 7... dxc4 {[%clk 0:02:52.9]} 8. bxc4
{[%clk 0:02:51.7]} 8... Nd7 {[%clk 0:02:50.6]} 9. d4 {[%clk 0:02:50.4]} 9... Bb4
{[%clk 0:02:46.7]} 10. Qb3 {[%clk 0:02:49.7]} 10... Qe7 {[%clk 0:02:45.9]} 11.
Be2 {[%clk 0:02:48.1]} 11... Rg8 {[%clk 0:02:44.5]} 12. O-O {[%clk 0:02:41.7]}
12... f5 {[%clk 0:02:37.7]} 13. g3 {[%clk 0:02:40.7]} 13... Nf6 {[%clk
0:02:09.7]} 14. Ne5 {[%clk 0:02:36.3]} 14... Ne4 {[%clk 0:01:19.5]} 15. Qa4+
{[%clk 0:02:30.3]} 15... Kf8 {[%clk 0:01:10.3]} 16. Nxe4 {[%clk 0:02:23.4]}
16... Bxe4 {[%clk 0:01:09.3]} 17. Nc6 {[%clk 0:02:20.3]} 17... Bxc6 {[%clk
0:01:02.2]} 18. Qxc6 {[%clk 0:02:20.1]} 18... Kg7 {[%clk 0:01:02.5]} 19. Bf3
{[%clk 0:02:14.4]} 19... Rad8 {[%clk 0:00:54.5]} 20. Rfd1 {[%clk 0:02:13.4]}
20... a5 {[%clk 0:00:51.9]} 21. Rac1 {[%clk 0:02:10.1]} 21... Qd6 {[%clk
0:00:49.1]} 22. Qa4 {[%clk 0:02:06.9]} 22... Ba3 {[%clk 0:00:33.5]} 23. c5
{[%clk 0:02:04.8]} 1-0

[Event "Early-Titled-Tuesday-Blitz-September-12-2023"]
[Site "Chess.com"]
[Date "2023.09.12"]
[Round "4"]
[White "RCone"]
[Black "campochess"]
[Result "1-0"]
[WhiteElo "2346"]
[BlackElo "2112"]
[TimeControl "180+1"]
[EndTime "8:35:48 PDT"]
[Termination "RCone won by resignation"]

1. e4 {[%clk 0:03:00.9]} 1... c5 {[%clk 0:02:59.8]} 2. Nc3 {[%clk 0:03:00.1]}
2... Nc6 {[%clk 0:02:59.6]} 3. Bb5 {[%clk 0:02:59.4]} 3... e5 {[%clk 0:02:58.6]}
4. Bxc6 {[%clk 0:02:54.2]} 4... dxc6 {[%clk 0:02:57.6]} 5. d3 {[%clk 0:02:54.2]}
5... f6 {[%clk 0:02:57.5]} 6. f4 {[%clk 0:02:52.8]} 6... Bd6 {[%clk 0:02:57.1]}
7. f5 {[%clk 0:02:46.8]} 7... Ne7 {[%clk 0:02:45]} 8. b3 {[%clk 0:02:46.5]} 8...
O-O {[%clk 0:02:43.2]} 9. g4 {[%clk 0:02:45.7]} 9... Bd7 {[%clk 0:02:39]} 10.
Nf3 {[%clk 0:02:44.5]} 10... Be8 {[%clk 0:02:38.2]} 11. h4 {[%clk 0:02:42.5]}
11... Bc7 {[%clk 0:02:34.9]} 12. Be3 {[%clk 0:02:39.1]} 12... Ba5 {[%clk
0:02:33]} 13. Qd2 {[%clk 0:02:23.2]} 13... b6 {[%clk 0:02:26.8]} 14. Kf2 {[%clk
0:02:21.8]} 14... Nc8 {[%clk 0:02:26.6]} 15. Ng1 {[%clk 0:02:07.3]} 15... Nd6
{[%clk 0:02:26.2]} 16. Nge2 {[%clk 0:02:08]} 16... Qc7 {[%clk 0:02:13.6]} 17. a4
{[%clk 0:02:06.2]} 17... Rd8 {[%clk 0:02:12.4]} 18. Qe1 {[%clk 0:02:06]} 18...
Nf7 {[%clk 0:02:02.1]} 19. Qg1 {[%clk 0:02:03.3]} 19... Kh8 {[%clk 0:01:59.6]}
20. g5 {[%clk 0:02:00.6]} 20... Nd6 {[%clk 0:01:52.1]} 21. Qg4 {[%clk
0:01:58.3]} 21... Qf7 {[%clk 0:01:48.9]} 22. Rag1 {[%clk 0:01:56.9]} 22... Qh5
{[%clk 0:01:48.4]} 23. gxf6 {[%clk 0:01:51.9]} 23... Qxg4 {[%clk 0:01:39.8]} 24.
Rxg4 {[%clk 0:01:51.5]} 24... gxf6 {[%clk 0:01:32.9]} 25. Rhg1 {[%clk
0:01:48.9]} 25... Bh5 {[%clk 0:01:31.9]} 26. Rg7 {[%clk 0:01:47.7]} 26... Rf7
{[%clk 0:01:31.2]} 27. Bh6 {[%clk 0:01:46.2]} 27... Rxg7 {[%clk 0:00:55.2]} 28.
Bxg7+ {[%clk 0:01:45]} 28... Kg8 {[%clk 0:00:55]} 29. Bxf6+ {[%clk 0:01:45.9]}
29... Kf7 {[%clk 0:00:54.7]} 30. Bxd8 {[%clk 0:01:46.1]} 30... b5 {[%clk
0:00:48]} 31. Bxa5 {[%clk 0:01:44]} 1-0

[Event "Early-Titled-Tuesday-Blitz-September-12-2023"]
[Site "Chess.com"]
[Date "2023.09.12"]
[Round "4"]
[White "Dr_crypt"]
[Black "Mesa_1"]
[Result "0-1"]
[WhiteElo "2409"]
[BlackElo "2616"]
[TimeControl "180+1"]
[EndTime "8:35:57 PDT"]
[Termination "Mesa_1 won by resignation"]

1. d4 {[%clk 0:03:00.1]} 1... Nf6 {[%clk 0:02:59.7]} 2. Nf3 {[%clk 0:03:00.2]}
2... g6 {[%clk 0:03:00.3]} 3. c4 {[%clk 0:03:00.4]} 3... Bg7 {[%clk 0:03:01]} 4.
Nc3 {[%clk 0:03:01.2]} 4... d6 {[%clk 0:03:01.8]} 5. e4 {[%clk 0:03:01.5]} 5...
O-O {[%clk 0:03:02.5]} 6. h3 {[%clk 0:03:00.3]} 6... Na6 {[%clk 0:02:59.8]} 7.
Be3 {[%clk 0:02:59.7]} 7... e5 {[%clk 0:03:00.2]} 8. d5 {[%clk 0:02:56.4]} 8...
Nc5 {[%clk 0:03:00.7]} 9. Nd2 {[%clk 0:02:56.8]} 9... a5 {[%clk 0:03:01]} 10.
Be2 {[%clk 0:02:57]} 10... c6 {[%clk 0:02:49.5]} 11. O-O {[%clk 0:02:50.7]}
11... Bd7 {[%clk 0:02:46.2]} 12. Rc1 {[%clk 0:02:49.3]} 12... Qb8 {[%clk
0:02:39.7]} 13. a3 {[%clk 0:02:39.1]} 13... a4 {[%clk 0:02:28.8]} 14. Bxc5
{[%clk 0:02:34.7]} 14... dxc5 {[%clk 0:02:29.7]} 15. Nxa4 {[%clk 0:02:34.7]}
15... cxd5 {[%clk 0:02:17.4]} 16. Nb6 {[%clk 0:02:30.4]} 16... dxe4 {[%clk
0:02:09.4]} 17. Nxa8 {[%clk 0:02:28.9]} 17... Qxa8 {[%clk 0:02:10.3]} 18. Nxe4
{[%clk 0:02:29]} 18... Nxe4 {[%clk 0:02:06.2]} 19. Qxd7 {[%clk 0:02:28.8]} 19...
Rd8 {[%clk 0:02:03.1]} 20. Qc7 {[%clk 0:02:25.4]} 20... Rc8 {[%clk 0:01:53.2]}
21. Qb6 {[%clk 0:02:21.8]} 21... Rc6 {[%clk 0:01:50.5]} 22. Qb5 {[%clk
0:02:17.2]} 22... Ng5 {[%clk 0:01:37.2]} 23. Rfd1 {[%clk 0:01:55.7]} 23... Ne6
{[%clk 0:01:33.7]} 24. Rd7 {[%clk 0:01:55.5]} 24... Nd4 {[%clk 0:01:29.9]} 25.
Bf1 {[%clk 0:01:55.3]} 25... Nxb5 {[%clk 0:01:29.4]} 26. cxb5 {[%clk 0:01:52.8]}
26... Rc8 {[%clk 0:01:27.5]} 27. Rcd1 {[%clk 0:01:51.1]} 27... Bf6 {[%clk
0:01:28]} 28. Bc4 {[%clk 0:01:50.7]} 28... Rd8 {[%clk 0:01:23.5]} 29. Rxd8+
{[%clk 0:01:48]} 29... Bxd8 {[%clk 0:01:21.9]} 30. Rd7 {[%clk 0:01:48.1]} 30...
Kg7 {[%clk 0:01:17.3]} 31. Rxf7+ {[%clk 0:01:43.6]} 31... Kh6 {[%clk 0:01:16.7]}
32. Bd5 {[%clk 0:01:31.2]} 32... Qa4 {[%clk 0:01:10.3]} 33. Rxb7 {[%clk
0:01:29.1]} 33... Qd1+ {[%clk 0:01:09.6]} 34. Kh2 {[%clk 0:01:27.8]} 34... Qxd5
{[%clk 0:01:10.2]} 0-1

[Event "Early-Titled-Tuesday-Blitz-September-12-2023"]
[Site "Chess.com"]
[Date "2023.09.12"]
[Round "4"]
[White "LoaySameer"]
[Black "Yuruultei"]
[Result "1-0"]
[WhiteElo "2523"]
[BlackElo "2340"]
[TimeControl "180+1"]
[EndTime "8:36:03 PDT"]
[Termination "LoaySameer won by resignation"]

1. Nf3 {[%clk 0:03:00.9]} 1... Nf6 {[%clk 0:02:58.3]} 2. g3 {[%clk 0:03:01.4]}
2... g6 {[%clk 0:02:58.8]} 3. Bg2 {[%clk 0:03:02.2]} 3... Bg7 {[%clk 0:02:59.5]}
4. O-O {[%clk 0:03:03]} 4... O-O {[%clk 0:03:00.2]} 5. d3 {[%clk 0:03:03.7]}
5... d6 {[%clk 0:03:00.9]} 6. e4 {[%clk 0:03:03.4]} 6... e5 {[%clk 0:02:59.5]}
7. c3 {[%clk 0:03:03.7]} 7... c5 {[%clk 0:02:55.2]} 8. a3 {[%clk 0:03:02.1]}
8... Nc6 {[%clk 0:02:50.8]} 9. b4 {[%clk 0:03:00.2]} 9... b6 {[%clk 0:02:50.2]}
10. Nbd2 {[%clk 0:02:57.5]} 10... h6 {[%clk 0:02:45.6]} 11. b5 {[%clk
0:02:57.9]} 11... Ne7 {[%clk 0:02:44.1]} 12. Nc4 {[%clk 0:02:58.4]} 12... Be6
{[%clk 0:02:43]} 13. a4 {[%clk 0:02:58.5]} 13... Bxc4 {[%clk 0:02:41]} 14. dxc4
{[%clk 0:02:58.3]} 14... Nxe4 {[%clk 0:02:41.9]} 15. Qc2 {[%clk 0:02:44.1]}
15... Nf6 {[%clk 0:02:37.7]} 16. a5 {[%clk 0:02:41.4]} 16... e4 {[%clk
0:02:25.5]} 17. Nd2 {[%clk 0:02:28.3]} 17... d5 {[%clk 0:02:25.6]} 18. cxd5
{[%clk 0:02:28.6]} 18... Qxd5 {[%clk 0:02:25.7]} 19. Nxe4 {[%clk 0:02:23.1]}
19... Qc4 {[%clk 0:02:08.4]} 20. Nxf6+ {[%clk 0:02:15.1]} 20... Bxf6 {[%clk
0:02:09.3]} 21. Bxh6 {[%clk 0:02:12]} 21... Rad8 {[%clk 0:02:02.1]} 22. Bxf8
{[%clk 0:02:08.5]} 22... Kxf8 {[%clk 0:01:59.1]} 23. Rad1 {[%clk 0:01:38.9]}
23... Rxd1 {[%clk 0:01:56.3]} 24. Rxd1 {[%clk 0:01:38.9]} 24... Qxc3 {[%clk
0:01:51.9]} 25. Qxc3 {[%clk 0:00:59.8]} 25... Bxc3 {[%clk 0:01:49.2]} 26. Rd8+
{[%clk 0:01:00.5]} 26... Kg7 {[%clk 0:01:49.5]} 27. a6 {[%clk 0:01:01.2]} 27...
Nf5 {[%clk 0:01:45.3]} 28. Rd7 {[%clk 0:00:58.6]} 28... Nd4 {[%clk 0:01:45]} 29.
Rxa7 {[%clk 0:00:55.4]} 29... Nxb5 {[%clk 0:01:44.3]} 30. Rb7 {[%clk 0:00:55.8]}
30... Bd4 {[%clk 0:01:42.3]} 31. a7 {[%clk 0:00:55.3]} 31... Nxa7 {[%clk
0:01:41.7]} 32. Rxa7 {[%clk 0:00:56.2]} 32... b5 {[%clk 0:01:42.6]} 33. Bd5
{[%clk 0:00:56.3]} 33... c4 {[%clk 0:01:42.1]} 34. Rxf7+ {[%clk 0:00:56.1]}
34... Kh6 {[%clk 0:01:41.2]} 35. Rb7 {[%clk 0:00:57]} 35... c3 {[%clk
0:01:39.1]} 36. Bb3 {[%clk 0:00:57.3]} 1-0

[Event "Early-Titled-Tuesday-Blitz-September-12-2023"]
[Site "Chess.com"]
[Date "2023.09.12"]
[Round "4"]
[White "Rutricks"]
[Black "WindWhistler11"]
[Result "1-0"]
[WhiteElo "2677"]
[BlackElo "2484"]
[TimeControl "180+1"]
[EndTime "8:36:07 PDT"]
[Termination "Rutricks won by resignation"]

1. e4 {[%clk 0:03:00.9]} 1... e6 {[%clk 0:02:54.4]} 2. Nf3 {[%clk 0:03:00.4]}
2... d5 {[%clk 0:02:53.5]} 3. Nc3 {[%clk 0:03:00.8]} 3... Nc6 {[%clk 0:02:47.1]}
4. d4 {[%clk 0:02:44.1]} 4... Nf6 {[%clk 0:02:43.1]} 5. Bg5 {[%clk 0:02:40.3]}
5... Be7 {[%clk 0:02:42.1]} 6. Bxf6 {[%clk 0:02:33.4]} 6... Bxf6 {[%clk
0:02:41]} 7. e5 {[%clk 0:02:31.6]} 7... Be7 {[%clk 0:02:41.1]} 8. Qd2 {[%clk
0:02:30]} 8... b6 {[%clk 0:02:39.3]} 9. O-O-O {[%clk 0:02:28.8]} 9... Bb7 {[%clk
0:02:38.7]} 10. h4 {[%clk 0:02:21.9]} 10... a6 {[%clk 0:02:38]} 11. h5 {[%clk
0:02:20.3]} 11... h6 {[%clk 0:02:38.3]} 12. Rh3 {[%clk 0:02:19.4]} 12... Qd7
{[%clk 0:02:31.6]} 13. Rg3 {[%clk 0:02:17.9]} 13... Bf8 {[%clk 0:02:32.2]} 14.
Kb1 {[%clk 0:02:15.9]} 14... O-O-O {[%clk 0:02:32.6]} 15. a3 {[%clk 0:02:12.4]}
15... Kb8 {[%clk 0:02:32.8]} 16. Bd3 {[%clk 0:02:10.7]} 16... Rc8 {[%clk
0:02:33]} 17. Qe3 {[%clk 0:02:02.2]} 17... Na5 {[%clk 0:02:31]} 18. Qe2 {[%clk
0:01:59.6]} 18... Ka7 {[%clk 0:02:30.4]} 19. Nd2 {[%clk 0:01:53.9]} 19... Qd8
{[%clk 0:02:25]} 20. Nb3 {[%clk 0:01:45.1]} 20... Nxb3 {[%clk 0:02:21.2]} 21.
cxb3 {[%clk 0:01:46]} 21... c5 {[%clk 0:02:20.1]} 22. dxc5 {[%clk 0:01:44.5]}
22... bxc5 {[%clk 0:02:19.4]} 23. Na4 {[%clk 0:01:43]} 23... Qa5 {[%clk
0:02:10.4]} 24. Rc1 {[%clk 0:01:39.7]} 24... Bc6 {[%clk 0:01:50.6]} 25. Nxc5
{[%clk 0:01:26.7]} 25... Bxc5 {[%clk 0:01:50]} 26. b4 {[%clk 0:01:26.9]} 26...
Bxb4 {[%clk 0:01:42.1]} 27. axb4 {[%clk 0:01:27.8]} 27... Qxb4 {[%clk
0:01:40.6]} 28. Bxa6 {[%clk 0:01:26.2]} 28... Rc7 {[%clk 0:01:34.6]} 29. Ra3
{[%clk 0:01:23.7]} 29... Qe4+ {[%clk 0:00:58.1]} 30. Bd3+ {[%clk 0:01:21.1]} 1-0

[Event "Early-Titled-Tuesday-Blitz-September-12-2023"]
[Site "Chess.com"]
[Date "2023.09.12"]
[Round "4"]
[White "Fleetw00dMac"]
[Black "TregubovP"]
[Result "1/2-1/2"]
[WhiteElo "2470"]
[BlackElo "2655"]
[TimeControl "180+1"]
[EndTime "8:36:07 PDT"]
[Termination "Game drawn by repetition"]

1. d4 {[%clk 0:03:00.9]} 1... Nf6 {[%clk 0:02:56.6]} 2. c4 {[%clk 0:03:00.8]}
2... c5 {[%clk 0:02:56.8]} 3. d5 {[%clk 0:03:00.2]} 3... b5 {[%clk 0:02:57.3]}
4. cxb5 {[%clk 0:03:00.3]} 4... a6 {[%clk 0:02:57.8]} 5. b6 {[%clk 0:02:58.9]}
5... e6 {[%clk 0:02:57.2]} 6. Nc3 {[%clk 0:02:58.4]} 6... Nxd5 {[%clk
0:02:54.9]} 7. Nxd5 {[%clk 0:02:58.1]} 7... exd5 {[%clk 0:02:55.6]} 8. Qxd5
{[%clk 0:02:57.9]} 8... Nc6 {[%clk 0:02:56.2]} 9. Nf3 {[%clk 0:02:57.7]} 9...
Be7 {[%clk 0:02:53.5]} 10. e4 {[%clk 0:02:57.1]} 10... Rb8 {[%clk 0:02:40.7]}
11. Bc4 {[%clk 0:02:56.5]} 11... O-O {[%clk 0:02:40.3]} 12. O-O {[%clk
0:02:55.1]} 12... Rxb6 {[%clk 0:02:40.5]} 13. Bd2 {[%clk 0:02:55]} 13... d6
{[%clk 0:02:40.1]} 14. Bc3 {[%clk 0:02:54.6]} 14... Be6 {[%clk 0:02:40.3]} 15.
Qd3 {[%clk 0:02:54.3]} 15... Bxc4 {[%clk 0:02:36.2]} 16. Qxc4 {[%clk 0:02:54]}
16... Bf6 {[%clk 0:02:36.9]} 17. Rad1 {[%clk 0:02:33.8]} 17... Bxc3 {[%clk
0:02:28.6]} 18. Qxc3 {[%clk 0:02:30.8]} 18... Qe7 {[%clk 0:02:28.7]} 19. Rfe1
{[%clk 0:02:29.8]} 19... Rfb8 {[%clk 0:02:15.8]} 20. Rd2 {[%clk 0:02:27.1]}
20... h6 {[%clk 0:02:05.3]} 21. h3 {[%clk 0:02:26.4]} 21... Ne5 {[%clk
0:01:44.9]} 22. Nxe5 {[%clk 0:02:17.9]} 22... Qxe5 {[%clk 0:01:42.1]} 23. Qxe5
{[%clk 0:02:16.7]} 23... dxe5 {[%clk 0:01:42.4]} 24. b3 {[%clk 0:02:16.2]} 24...
Rb4 {[%clk 0:01:14.2]} 25. f3 {[%clk 0:02:10.7]} 25... c4 {[%clk 0:01:12.6]} 26.
bxc4 {[%clk 0:02:10.5]} 26... Rxc4 {[%clk 0:01:13]} 27. Red1 {[%clk 0:02:08.1]}
27... Ra4 {[%clk 0:01:05.9]} 28. h4 {[%clk 0:02:03.1]} 28... h5 {[%clk
0:01:05.4]} 29. Kh2 {[%clk 0:02:02.4]} 29... Kh7 {[%clk 0:01:05]} 30. Kg3 {[%clk
0:02:00.7]} 30... Rb6 {[%clk 0:01:04.3]} 31. Rc1 {[%clk 0:01:59.1]} 31... Rb7
{[%clk 0:00:53]} 32. Rc5 {[%clk 0:01:50.7]} 32... f6 {[%clk 0:00:53.1]} 33. Rc8
{[%clk 0:01:49.7]} 33... Kg6 {[%clk 0:00:53]} 34. Rc6 {[%clk 0:01:45.3]} 34...
Ra3 {[%clk 0:00:52.9]} 35. Rc5 {[%clk 0:01:31.8]} 35... Ra4 {[%clk 0:00:53.1]}
36. Rc6 {[%clk 0:01:31.1]} 36... Ra3 {[%clk 0:00:53.5]} 37. Rc5 {[%clk
0:01:31.2]} 37... Ra4 {[%clk 0:00:53.8]} 38. Rc6 {[%clk 0:01:31.5]} 1/2-1/2